Workbook

Sheet Sheet1
A1: Wind (m/s)= | B1: =0.44704*G1 -> 31.2928 | C1: Slope= | D1: 1.25 | F1: Wind (mph)= | G1: 70 | I1: Pressure (Pascal)=
C3: Wind setup | E3: Pressure setup | G3: Forerunner setup | I3: Total surge | K3: Wind setup | M3: Pressure setup | O3: Forerunner setup | Q3: Total surge
A4: y (km) | B4: depth (m) | C4: (meters) | E4: (meters) | G4: (meters) | I4: (meters) | K4: (feet) | M4: (feet) | O4: (feet) | Q4: (feet)
A5: 0 | B5: 0 | C5: =C6+(1000*0.000000357)*(($B$1)^2)/(B5+C6) -> 1.39032103 | G5: =forerunnerSetup(D1, G1, C5, E5) -> 0.6269044418
A6: =A5+1 -> 1 | B6: =B5+$D$1*(A6-A5) -> 1.25 | C6: =C7+(1000*0.000000357)*(($B$1)^2)/(B6+C7) -> 1.060755509
A7: =A6+1 -> 2 | B7: =B6+$D$1*(A7-A6) -> 2.5 | C7: 0.8980052348
A8: 3 | B8: 3.75 | C8: 0.7918056349
A9: 4 | B9: 5 | C9: 0.7134837543
A10: 5 | B10: 6.25 | C10: 0.6516275119
A11: 6 | B11: 7.5 | C11: 0.6005971515
A12: 7 | B12: 8.75 | C12: 0.5572088707
A13: 8 | B13: 10 | C13: 0.5194950102
A14: 9 | B14: 11.25 | C14: 0.4861569204
A15: 10 | B15: 12.5 | C15: 0.4562936304
A16: 11 | B16: 13.75 | C16: 0.4292550702
A17: 12 | B17: 15 | C17: 0.4045571274
A18: 13 | B18: 16.25 | C18: 0.3818297636
A19: 14 | B19: 17.5 | C19: 0.360783891
A20: 15 | B20: 18.75 | C20: 0.3411894328
A21: 16 | B21: 20 | C21: 0.3228603287
A22: 17 | B22: 21.25 | C22: 0.3056440099
A23: 18 | B23: 22.5 | C23: 0.2894138355
A24: 19 | B24: 23.75 | C24: 0.2740635472
A25: 20 | B25: 25 | C25: 0.2595031276
A26: 21 | B26: 26.25 | C26: 0.2456556583
A27: 22 | B27: 27.5 | C27: 0.2324549017
A28: 23 | B28: 28.75 | C28: 0.2198434148
A29: 24 | B29: 30 | C29: 0.2077710615
A30: 25 | B30: 31.25 | C30: 0.1961938262
A31: 26 | B31: 32.5 | C31: 0.1850728582
A32: 27 | B32: 33.75 | C32: 0.1743736954
A33: 28 | B33: 35 | C33: 0.164065629
A34: 29 | B34: 36.25 | C34: 0.1541211778
A35: 30 | B35: 37.5 | C35: 0.1445156525
A36: 31 | B36: 38.75 | C36: 0.1352267902
A37: 32 | B37: 40 | C37: 0.126234447
A38: 33 | B38: 41.25 | C38: 0.1175203381
A39: 34 | B39: 42.5 | C39: 0.1090678158
A40: 35 | B40: 43.75 | C40: 0.1008616804
A41: 36 | B41: 45 | C41: 0.09288801673
A42: 37 | B42: 46.25 | C42: 0.08513405417
A43: 38 | B43: 47.5 | C43: 0.07758804419
A44: 39 | B44: 48.75 | C44: 0.07023915447
A45: 40 | B45: 50 | C45: 0.06307737611
A46: 41 | B46: 51.25 | C46: 0.05609344234
A47: 42 | B47: 52.5 | C47: 0.04927875702
A48: 43 | B48: 53.75 | C48: 0.04262533156
A49: 44 | B49: 55 | C49: 0.03612572898
A50: 45 | B50: 56.25 | C50: 0.0297730144
A51: 46 | B51: 57.5 | C51: 0.02356071084
A52: 47 | B52: 58.75 | C52: 0.01748275985
A53: 48 | B53: 60 | C53: 0.01153348622
A54: 49 | B54: 61.25 | C54: =C55+(1000*0.000000357)*(($B$1)^2)/(B54+C55) -> 0.005707566391
A55: 50 | B55: 62.5 | C55: 0

Sheet Sheet2
A1: Very Shallow | D1: Shallow | G1: Moderate | J1: Deep | M1: Very Deep
A2: y | B2: z | D2: y | E2: z | G2: y | H2: z | J2: y | K2: z | M2: y | N2: z
A3: 0 | B3: 0 | D3: 0 | E3: 0 | G3: 0 | H3: 0 | J3: 0 | K3: 0 | M3: 0 | N3: 0
A4: -8 | B4: -2.5 | D4: -8 | E4: -4 | G4: -8 | H4: -10 | J4: -8 | K4: -20 | M4: -8 | N4: -80
A7: slope | B7: =(B4-B3)/(A4-A3) -> 0.3125 | E7: =(E4-E3)/(D4-D3) -> 0.5 | H7: =(H4-H3)/(G4-G3) -> 1.25 | K7: =(K4-K3)/(J4-J3) -> 2.5 | N7: =(N4-N3)/(M4-M3) -> 10
B10: 10mph, 250km
A11: slope | B11: Cat1 | C11: Cat2 | D11: Cat3 | E11: Cat4 | F11: Cat5
A12: =B7 -> 0.3125 | B12: 0.204 | C12: =(B12+D12)/2 -> 0.1922 | D12: 0.1804 | E12: =(D12+F12)/2 -> 0.1854 | F12: 0.1904
A13: =E7 -> 0.5 | B13: 0.3525 | C13: =(B13+D13)/2 -> 0.31815 | D13: 0.2838 | E13: =(D13+F13)/2 -> 0.2826 | F13: 0.2814
A14: =H7 -> 1.25 | B14: 0.5323 | C14: 0.4693 | D14: 0.4063 | E14: 0.39725 | F14: 0.3882
A15: =K7 -> 2.5 | B15: 0.5991 | C15: 0.5249 | D15: 0.4507 | E15: 0.43475 | F15: 0.4188
A16: =N7 -> 10 | B16: 0.9446 | C16: 0.8356 | D16: 0.7266 | E16: 0.6682 | F16: 0.6098
B18: coeff
A19: y0 | B19: 0.217 | C19: 0.204 | D19: 0.1911 | E19: 0.1964 | F19: 0.2017
A20: a | B20: 0.2035 | C20: 0.1704 | D20: 0.1373 | E20: 0.1273 | F20: 0.1173
A21: b | B21: -0.0131 | C21: -0.0107 | D21: -0.0084 | E21: -0.008 | F21: -0.0077

Sheet Sheet3
